[Event "Titled Tuesday Blitz February 21 Early 2023"]
[White "Melikhov, Evgeny V."]
[Black "Melian, Juan Sebastian"]
[WhiteFideId "4122046"]
[BlackFideId "3706575"]
[WhiteElo "2269"]
[BlackElo "2293"]
[Result "1/2-1/2"]
[Round "07"]
[TimeControl "180+2"]
[Date "2023.02.21"]
[WhiteClock "0:00:04"]
[BlackClock "0:00:02"]

1. d4 {[%clk 0:03:00]}  Nf6 {[%clk 0:02:59]} 2. c4 {[%clk 0:02:59]}  e6 {[%clk 0:03:00]} 3. Nc3 {[%clk 0:02:59]}  Bb4 {[%clk 0:02:56]} 4. Qc2 {[%clk 0:02:59]}  c5 {[%clk 0:02:56]} 5. dxc5 {[%clk 0:02:59]}  Qc7 {[%clk 0:02:56]} 6. a3 {[%clk 0:02:58]}  Bxc5 {[%clk 0:02:54]} 7. Nf3 {[%clk 0:02:58]}  a6 {[%clk 0:02:54]} 8. e3 {[%clk 0:02:56]}  O-O {[%clk 0:02:53]} 9. b3 {[%clk 0:02:55]}  b6 {[%clk 0:02:50]} 10. Bb2 {[%clk 0:02:53]}  Bb7 {[%clk 0:02:51]} 11. Be2 {[%clk 0:02:53]}  Be7 {[%clk 0:02:49]} 12. g4 {[%clk 0:02:49]}  Nxg4 {[%clk 0:02:46]} 13. Rg1 {[%clk 0:02:49]}  Nf6 {[%clk 0:02:46]} 14. O-O-O {[%clk 0:02:30]}  d6 {[%clk 0:02:42]} 15. Rg3 {[%clk 0:01:41]}  g6 {[%clk 0:02:24]} 16. Rdg1 {[%clk 0:01:40]}  Nbd7 {[%clk 0:02:20]} 17. h4 {[%clk 0:01:13]}  Rfd8 {[%clk 0:01:54]} 18. h5 {[%clk 0:00:43]}  Nf8 {[%clk 0:01:50]} 19. hxg6 {[%clk 0:00:38]}  fxg6 {[%clk 0:01:38]} 20. Nh4 {[%clk 0:00:36]}  Kf7 {[%clk 0:01:27]} 21. Nxg6 {[%clk 0:00:30]}  hxg6 {[%clk 0:01:24]} 22. Rxg6 {[%clk 0:00:30]}  Ke8 {[%clk 0:01:17]} 23. Rg7 {[%clk 0:00:30]}  Rd7 {[%clk 0:01:03]} 24. Bd3 {[%clk 0:00:26]}  Kd8 {[%clk 0:01:02]} 25. Ne4 {[%clk 0:00:24]}  Nxe4 {[%clk 0:01:00]} 26. Bxe4 {[%clk 0:00:24]}  Kc8 {[%clk 0:01:00]} 27. Rg8 {[%clk 0:00:20]}  Kb8 {[%clk 0:00:59]} 28. Rh1 {[%clk 0:00:19]}  Ka7 {[%clk 0:00:59]} 29. Rhh8 {[%clk 0:00:18]}  d5 {[%clk 0:00:53]} 30. Bd3 {[%clk 0:00:17]}  Rc8 {[%clk 0:00:50]} 31. Kb1 {[%clk 0:00:16]}  Bd6 {[%clk 0:00:39]} 32. Ka2 {[%clk 0:00:15]}  Re7 {[%clk 0:00:39]} 33. Bd4 {[%clk 0:00:13]}  Bc5 {[%clk 0:00:37]} 34. Rxf8 {[%clk 0:00:11]}  Rxf8 {[%clk 0:00:30]} 35. Rxf8 {[%clk 0:00:11]}  Rd7 {[%clk 0:00:23]} 36. Rh8 {[%clk 0:00:10]}  Bxd4 {[%clk 0:00:19]} 37. exd4 {[%clk 0:00:10]}  dxc4 {[%clk 0:00:19]} 38. bxc4 {[%clk 0:00:09]}  Rxd4 {[%clk 0:00:19]} 39. Rh7 {[%clk 0:00:08]}  Rd7 {[%clk 0:00:18]} 40. Rxd7 {[%clk 0:00:07]}  Qxd7 {[%clk 0:00:19]} 41. c5 {[%clk 0:00:07]}  Bd5+ {[%clk 0:00:17]} 42. Kb2 {[%clk 0:00:07]}  Qc6 {[%clk 0:00:12]} 43. cxb6+ {[%clk 0:00:07]}  Qxb6+ {[%clk 0:00:13]} 44. Kc1 {[%clk 0:00:06]}  Qd4 {[%clk 0:00:11]} 45. Qd2 {[%clk 0:00:04]}  Qa1+ {[%clk 0:00:10]} 46. Bb1 {[%clk 0:00:02]}  Qf6 {[%clk 0:00:09]} 47. Qe3+ {[%clk 0:00:01]}  Kb7 {[%clk 0:00:10]} 48. Be4 {[%clk 0:00:01]}  Qa1+ {[%clk 0:00:09]} 49. Kd2 {[%clk 0:00:01]}  Qb2+ {[%clk 0:00:09]} 50. Ke1 {[%clk 0:00:01]}  Qa1+ {[%clk 0:00:06]} 51. Kd2 {[%clk 0:00:01]}  Kc6 {[%clk 0:00:05]} 52. Bxd5+ {[%clk 0:00:01]}  Kxd5 {[%clk 0:00:06]} 53. Qd3+ {[%clk 0:00:01]}  Kc5 {[%clk 0:00:05]} 54. Qc3+ {[%clk 0:00:02]}  Qxc3+ {[%clk 0:00:05]} 55. Kxc3 {[%clk 0:00:03]}  Kd5 {[%clk 0:00:04]} 56. Kd3 {[%clk 0:00:03]}  Ke5 {[%clk 0:00:04]} 57. Ke3 {[%clk 0:00:02]}  Kd5 {[%clk 0:00:03]} 58. Kd3 {[%clk 0:00:03]}  a5 {[%clk 0:00:03]} 59. a4 {[%clk 0:00:02]}  Kc5 {[%clk 0:00:03]} 60. Kc3 {[%clk 0:00:02]}  Kd5 {[%clk 0:00:03]} 61. Kd3 {[%clk 0:00:02]}  Ke5 {[%clk 0:00:04]} 62. Ke3 {[%clk 0:00:03]}  Kf5 {[%clk 0:00:04]} 63. Kf3 {[%clk 0:00:03]}  Ke5 {[%clk 0:00:02]} 64. Ke3 {[%clk 0:00:03]}  Kd5 {[%clk 0:00:02]} 65. Kd3 {[%clk 0:00:04]} 1/2-1/2


[Site "https://www.chess.com"]

[Event "Titled Tuesday Blitz February 21 Early 2023"]
[White "Lorenzo De La Riva, Lazaro"]
[Black "Yurasova, Daria"]
[WhiteFideId "2268809"]
[BlackFideId "34146919"]
[WhiteElo "2404"]
[BlackElo "2095"]
[Result "1-0"]
[Round "07"]
[TimeControl "180+2"]
[Date "2023.02.21"]
[WhiteClock "0:01:05"]
[BlackClock "0:00:51"]

1. d4 {[%clk 0:02:50]}  d6 {[%clk 0:02:48]} 2. Nc3 {[%clk 0:02:51]}  Nf6 {[%clk 0:02:44]} 3. e4 {[%clk 0:02:50]}  Nbd7 {[%clk 0:02:44]} 4. f4 {[%clk 0:02:48]}  e5 {[%clk 0:02:42]} 5. Nf3 {[%clk 0:02:49]}  Be7 {[%clk 0:02:40]} 6. dxe5 {[%clk 0:02:38]}  dxe5 {[%clk 0:02:39]} 7. fxe5 {[%clk 0:02:39]}  Ng4 {[%clk 0:02:38]} 8. Bf4 {[%clk 0:02:39]}  h5 {[%clk 0:02:21]} 9. h3 {[%clk 0:02:34]}  Nh6 {[%clk 0:02:21]} 10. Bc4 {[%clk 0:02:32]}  Nc5 {[%clk 0:02:14]} 11. Qxd8+ {[%clk 0:02:30]}  Bxd8 {[%clk 0:02:15]} 12. O-O-O {[%clk 0:02:24]}  Ne6 {[%clk 0:02:14]} 13. Be3 {[%clk 0:02:23]}  c6 {[%clk 0:02:09]} 14. a4 {[%clk 0:02:21]}  Bc7 {[%clk 0:01:59]} 15. g4 {[%clk 0:02:10]}  Ng8 {[%clk 0:01:52]} 16. Rdf1 {[%clk 0:01:42]}  Ne7 {[%clk 0:01:41]} 17. Ne2 {[%clk 0:01:31]}  Ng6 {[%clk 0:01:34]} 18. Bd4 {[%clk 0:01:28]}  Bd7 {[%clk 0:01:21]} 19. Bxe6 {[%clk 0:01:25]}  Bxe6 {[%clk 0:01:21]} 20. Ng5 {[%clk 0:01:23]}  Nxe5 {[%clk 0:00:59]} 21. Nf4 {[%clk 0:01:19]}  Bc4 {[%clk 0:00:58]} 22. Rf2 {[%clk 0:01:07]}  O-O-O {[%clk 0:00:57]} 23. b3 {[%clk 0:01:06]}  Rd6 {[%clk 0:00:51]} 24. Bxe5 {[%clk 0:01:05]} 1-0


[Site "https://www.chess.com"]

[Event "Titled Tuesday Blitz February 21 Early 2023"]
[White "Novikova, Galina"]
[Black "Arencibia Monduy, Antonio"]
[WhiteFideId "4157095"]
[BlackFideId "3507939"]
[WhiteElo "2073"]
[BlackElo "2122"]
[Result "0-1"]
[Round "07"]
[TimeControl "180+2"]
[Date "2023.02.21"]
[WhiteClock "0:02:18"]
[BlackClock "0:01:51"]

1. e4 {[%clk 0:03:00]}  c5 {[%clk 0:02:58]} 2. Nf3 {[%clk 0:03:00]}  d6 {[%clk 0:02:58]} 3. d4 {[%clk 0:03:00]}  cxd4 {[%clk 0:02:59]} 4. Nxd4 {[%clk 0:03:01]}  Nf6 {[%clk 0:02:59]} 5. Nc3 {[%clk 0:03:01]}  a6 {[%clk 0:02:59]} 6. h3 {[%clk 0:03:01]}  e5 {[%clk 0:02:59]} 7. Nde2 {[%clk 0:03:01]}  Be6 {[%clk 0:02:58]} 8. g4 {[%clk 0:03:02]}  h6 {[%clk 0:02:58]} 9. Bg2 {[%clk 0:03:02]}  Be7 {[%clk 0:02:55]} 10. Be3 {[%clk 0:03:03]}  Nbd7 {[%clk 0:02:54]} 11. Ng3 {[%clk 0:03:03]}  Rc8 {[%clk 0:02:53]} 12. O-O {[%clk 0:03:01]}  Qc7 {[%clk 0:02:47]} 13. Rc1 {[%clk 0:02:55]}  g6 {[%clk 0:02:41]} 14. Nd5 {[%clk 0:02:54]}  Bxd5 {[%clk 0:02:38]} 15. exd5 {[%clk 0:02:54]}  h5 {[%clk 0:02:38]} 16. g5 {[%clk 0:02:54]}  Nh7 {[%clk 0:02:34]} 17. h4 {[%clk 0:02:54]}  f5 {[%clk 0:02:27]} 18. gxf6 {[%clk 0:02:41]}  Bxf6 {[%clk 0:02:27]} 19. Qd3 {[%clk 0:02:40]}  Nhf8 {[%clk 0:02:21]} 20. f4 {[%clk 0:02:32]}  Qc4 {[%clk 0:02:17]} 21. Qd2 {[%clk 0:02:24]}  Bxh4 {[%clk 0:02:12]} 22. Ne4 {[%clk 0:02:25]}  Be7 {[%clk 0:02:05]} 23. f5 {[%clk 0:02:17]}  gxf5 {[%clk 0:01:52]} 24. Rxf5 {[%clk 0:02:18]}  Rg8 {[%clk 0:01:51]} 0-1


[Site "https://www.chess.com"]

[Event "Titled Tuesday Blitz February 21 Early 2023"]
[White "Tsyhanchuk, Stanislav"]
[Black "Bethke, Richard"]
[WhiteFideId "13505130"]
[BlackFideId "12959243"]
[WhiteElo "2273"]
[BlackElo "2382"]
[Result "0-1"]
[Round "07"]
[TimeControl "180+2"]
[Date "2023.02.21"]
[WhiteClock "0:00:23"]
[BlackClock "0:00:34"]

1. c4 {[%clk 0:02:59]}  Nf6 {[%clk 0:02:59]} 2. Nc3 {[%clk 0:02:59]}  e6 {[%clk 0:02:59]} 3. e3 {[%clk 0:02:58]}  d5 {[%clk 0:03:00]} 4. Nf3 {[%clk 0:02:58]}  b6 {[%clk 0:03:00]} 5. b3 {[%clk 0:02:58]}  Bb7 {[%clk 0:03:00]} 6. Bb2 {[%clk 0:02:58]}  c5 {[%clk 0:03:00]} 7. cxd5 {[%clk 0:02:57]}  Nxd5 {[%clk 0:02:58]} 8. Be2 {[%clk 0:02:56]}  Nxc3 {[%clk 0:02:56]} 9. Bxc3 {[%clk 0:02:55]}  Nc6 {[%clk 0:02:57]} 10. a3 {[%clk 0:02:52]}  f6 {[%clk 0:02:56]} 11. Bc4 {[%clk 0:02:45]}  e5 {[%clk 0:02:53]} 12. Nh4 {[%clk 0:02:41]}  Qd7 {[%clk 0:02:51]} 13. Qh5+ {[%clk 0:02:38]}  Kd8 {[%clk 0:02:42]} 14. Rd1 {[%clk 0:02:31]}  Kc7 {[%clk 0:02:38]} 15. Nf3 {[%clk 0:02:17]}  e4 {[%clk 0:02:30]} 16. Ng1 {[%clk 0:02:08]}  Bd6 {[%clk 0:02:29]} 17. Ne2 {[%clk 0:02:07]}  Ne5 {[%clk 0:02:22]} 18. d4 {[%clk 0:01:58]}  exd3 {[%clk 0:02:20]} 19. Bxe5 {[%clk 0:01:49]}  Bxe5 {[%clk 0:02:19]} 20. Rxd3 {[%clk 0:01:49]}  Qe7 {[%clk 0:02:18]} 21. O-O {[%clk 0:01:40]}  Be4 {[%clk 0:02:11]} 22. Rdd1 {[%clk 0:01:27]}  Rhd8 {[%clk 0:02:09]} 23. f3 {[%clk 0:01:17]}  Bc2 {[%clk 0:02:07]} 24. Rxd8 {[%clk 0:01:15]}  Rxd8 {[%clk 0:02:08]} 25. e4 {[%clk 0:01:14]}  Rd2 {[%clk 0:02:06]} 26. Qxh7 {[%clk 0:01:07]}  Bxb3 {[%clk 0:02:02]} 27. Bxb3 {[%clk 0:01:03]}  Rxe2 {[%clk 0:02:02]} 28. Qg8 {[%clk 0:01:02]}  Bd4+ {[%clk 0:02:01]} 29. Kh1 {[%clk 0:01:02]}  Qd7 {[%clk 0:01:52]} 30. Qa8 {[%clk 0:00:59]}  Rb2 {[%clk 0:01:46]} 31. Qxa7+ {[%clk 0:00:52]}  Kc6 {[%clk 0:01:42]} 32. Ba4+ {[%clk 0:00:42]}  b5 {[%clk 0:01:35]} 33. Qa6+ {[%clk 0:00:35]}  Kc7 {[%clk 0:01:35]} 34. Qa5+ {[%clk 0:00:31]}  Kd6 {[%clk 0:01:34]} 35. Bd1 {[%clk 0:00:28]}  c4 {[%clk 0:01:29]} 36. f4 {[%clk 0:00:26]}  c3 {[%clk 0:01:25]} 37. e5+ {[%clk 0:00:18]}  fxe5 {[%clk 0:01:20]} 38. fxe5+ {[%clk 0:00:19]}  Bxe5 {[%clk 0:01:20]} 39. Bf3 {[%clk 0:00:18]}  Ke7 {[%clk 0:01:19]} 40. Bh5 {[%clk 0:00:16]}  Qf5 {[%clk 0:01:13]} 41. Qa7+ {[%clk 0:00:13]}  Ke6 {[%clk 0:01:12]} 42. Bf7+ {[%clk 0:00:08]}  Kd6 {[%clk 0:01:07]} 43. Rxf5 {[%clk 0:00:08]}  Rb1+ {[%clk 0:01:07]} 44. Qg1 {[%clk 0:00:09]}  Rxg1+ {[%clk 0:01:07]} 45. Kxg1 {[%clk 0:00:09]}  Bd4+ {[%clk 0:01:04]} 46. Kh1 {[%clk 0:00:06]}  c2 {[%clk 0:01:03]} 47. Rf1 {[%clk 0:00:06]}  Bb2 {[%clk 0:01:03]} 48. h4 {[%clk 0:00:06]}  Bxa3 {[%clk 0:01:02]} 49. h5 {[%clk 0:00:05]}  c1=Q {[%clk 0:01:01]} 50. Rxc1 {[%clk 0:00:06]}  Bxc1 {[%clk 0:01:02]} 51. Kg1 {[%clk 0:00:05]}  Ke5 {[%clk 0:00:59]} 52. Kf2 {[%clk 0:00:05]}  Kd4 {[%clk 0:00:59]} 53. Kf3 {[%clk 0:00:05]}  Kc3 {[%clk 0:00:58]} 54. Ke4 {[%clk 0:00:06]}  b4 {[%clk 0:00:58]} 55. Kf5 {[%clk 0:00:05]}  b3 {[%clk 0:00:55]} 56. g4 {[%clk 0:00:05]}  b2 {[%clk 0:00:55]} 57. Ba2 {[%clk 0:00:06]}  Be3 {[%clk 0:00:40]} 58. Bb1 {[%clk 0:00:06]}  Kc4 {[%clk 0:00:38]} 59. Kg6 {[%clk 0:00:06]}  Bd4 {[%clk 0:00:39]} 60. g5 {[%clk 0:00:05]}  Kd5 {[%clk 0:00:39]} 61. Kh7 {[%clk 0:00:05]}  Ke6 {[%clk 0:00:38]} 62. Kg6 {[%clk 0:00:04]}  Ke7 {[%clk 0:00:38]} 63. Bc2 {[%clk 0:00:04]}  Kf8 {[%clk 0:00:38]} 64. Bb1 {[%clk 0:00:05]}  Kg8 {[%clk 0:00:38]} 65. Bc2 {[%clk 0:00:06]}  Kh8 {[%clk 0:00:39]} 66. Bb1 {[%clk 0:00:07]}  Be3 {[%clk 0:00:39]} 67. Ba2 {[%clk 0:00:07]}  Bc1 {[%clk 0:00:38]} 68. Kf5 {[%clk 0:00:04]}  Kh7 {[%clk 0:00:37]} 69. Bb1 {[%clk 0:00:04]}  Bd2 {[%clk 0:00:37]} 70. Bc2 {[%clk 0:00:03]}  Be3 {[%clk 0:00:35]} 71. Ke6+ {[%clk 0:00:03]}  Kg8 {[%clk 0:00:35]} 72. g6 {[%clk 0:00:03]}  Kf8 {[%clk 0:00:33]} 73. Bb1 {[%clk 0:00:02]}  Ke8 {[%clk 0:00:32]} 74. Kf5 {[%clk 0:00:03]}  Kd7 {[%clk 0:00:32]} 75. Ke4 {[%clk 0:00:04]}  Bc1 {[%clk 0:00:30]} 76. Kd3 {[%clk 0:00:04]}  Ke6 {[%clk 0:00:30]} 77. Ke4 {[%clk 0:00:04]}  Kf6 {[%clk 0:00:29]} 78. Kf3 {[%clk 0:00:04]}  Kg5 {[%clk 0:00:29]} 79. Ke2 {[%clk 0:00:04]}  Kxh5 {[%clk 0:00:29]} 80. Kd1 {[%clk 0:00:05]}  Kg5 {[%clk 0:00:29]} 81. Ke1 {[%clk 0:00:05]}  Kf4 {[%clk 0:00:27]} 82. Kf1 {[%clk 0:00:06]}  Ke3 {[%clk 0:00:27]} 83. Ke1 {[%clk 0:00:07]}  Kd4 {[%clk 0:00:22]} 84. Kd1 {[%clk 0:00:07]}  Kc3 {[%clk 0:00:23]} 85. Bc2 {[%clk 0:00:08]}  Kb4 {[%clk 0:00:22]} 86. Bb1 {[%clk 0:00:08]}  Kb3 {[%clk 0:00:23]} 87. Bc2+ {[%clk 0:00:08]}  Ka2 {[%clk 0:00:23]} 88. Ke2 {[%clk 0:00:09]}  b1=Q {[%clk 0:00:22]} 89. Bxb1+ {[%clk 0:00:09]}  Kxb1 {[%clk 0:00:23]} 90. Kd3 {[%clk 0:00:10]}  Bh6 {[%clk 0:00:23]} 91. Ke4 {[%clk 0:00:11]}  Kb2 {[%clk 0:00:24]} 92. Kd5 {[%clk 0:00:12]}  Kc3 {[%clk 0:00:25]} 93. Ke6 {[%clk 0:00:13]}  Kd4 {[%clk 0:00:26]} 94. Kf7 {[%clk 0:00:14]}  Ke5 {[%clk 0:00:27]} 95. Kg8 {[%clk 0:00:15]}  Kf6 {[%clk 0:00:27]} 96. Kh7 {[%clk 0:00:16]}  Kg5 {[%clk 0:00:27]} 97. Kg8 {[%clk 0:00:17]}  Kxg6 {[%clk 0:00:28]} 98. Kh8 {[%clk 0:00:17]}  Kh5 {[%clk 0:00:29]} 99. Kg8 {[%clk 0:00:18]}  g6 {[%clk 0:00:29]} 100. Kh8 {[%clk 0:00:19]}  g5 {[%clk 0:00:30]} 101. Kg8 {[%clk 0:00:20]}  g4 {[%clk 0:00:31]} 102. Kh8 {[%clk 0:00:21]}  g3 {[%clk 0:00:32]} 103. Kg8 {[%clk 0:00:22]}  g2 {[%clk 0:00:33]} 104. Kh8 {[%clk 0:00:22]}  g1=Q {[%clk 0:00:33]} 105. Kh7 {[%clk 0:00:23]}  Qg7# {[%clk 0:00:34]} 0-1


[Site "https://www.chess.com"]

[Event "Titled Tuesday Blitz February 21 Early 2023"]
[White "Buchenau, Frank"]
[Black "mohsengabr2002"]
[WhiteFideId "4604350"]
[WhiteElo "2222"]
[BlackElo "2324"]
[Result "1-0"]
[Round "07"]
[TimeControl "180+2"]
[Date "2023.02.21"]
[WhiteClock "0:01:59"]
[BlackClock "0:01:55"]

1. c4 {[%clk 0:03:00]}  g6 {[%clk 0:02:54]} 2. g3 {[%clk 0:02:59]}  h5 {[%clk 0:02:51]} 3. Nf3 {[%clk 0:02:57]}  Bg7 {[%clk 0:02:49]} 4. Bg2 {[%clk 0:02:57]}  c5 {[%clk 0:02:49]} 5. Nc3 {[%clk 0:02:57]}  Nc6 {[%clk 0:02:49]} 6. O-O {[%clk 0:02:56]}  Nd4 {[%clk 0:02:48]} 7. Nxd4 {[%clk 0:02:49]}  cxd4 {[%clk 0:02:48]} 8. Nd5 {[%clk 0:02:43]}  e6 {[%clk 0:02:46]} 9. Nf4 {[%clk 0:02:36]}  h4 {[%clk 0:02:46]} 10. e3 {[%clk 0:02:32]}  Nf6 {[%clk 0:02:34]} 11. exd4 {[%clk 0:02:29]}  g5 {[%clk 0:02:34]} 12. Ne2 {[%clk 0:02:20]}  Qc7 {[%clk 0:02:25]} 13. d3 {[%clk 0:02:18]}  Rb8 {[%clk 0:02:13]} 14. Bxg5 {[%clk 0:02:17]}  h3 {[%clk 0:02:13]} 15. Bh1 {[%clk 0:02:09]}  b5 {[%clk 0:02:11]} 16. Bf4 {[%clk 0:02:08]}  d6 {[%clk 0:02:10]} 17. c5 {[%clk 0:02:07]}  Bf8 {[%clk 0:02:07]} 18. Rc1 {[%clk 0:02:02]}  Bb7 {[%clk 0:01:55]} 19. cxd6 {[%clk 0:02:00]}  Qd7 {[%clk 0:01:55]} 20. Rc7 {[%clk 0:01:59]} 1-0


[Site "https://www.chess.com"]

[Event "Titled Tuesday Blitz February 21 Early 2023"]
[White "Shuvalov, Evgenij"]
[Black "rikchessmx"]
[WhiteFideId "4187237"]
[WhiteElo "2038"]
[BlackElo "2351"]
[Result "0-1"]
[Round "07"]
[TimeControl "180+2"]
[Date "2023.02.21"]
[WhiteClock "0:00:18"]
[BlackClock "0:00:21"]

1. d4 {[%clk 0:03:00]}  Nf6 {[%clk 0:02:35]} 2. c4 {[%clk 0:02:58]}  e6 {[%clk 0:02:34]} 3. Nc3 {[%clk 0:02:57]}  d5 {[%clk 0:02:33]} 4. cxd5 {[%clk 0:02:56]}  exd5 {[%clk 0:02:33]} 5. Bg5 {[%clk 0:02:57]}  Nbd7 {[%clk 0:02:34]} 6. e3 {[%clk 0:02:56]}  Be7 {[%clk 0:02:27]} 7. Bd3 {[%clk 0:02:55]}  O-O {[%clk 0:02:28]} 8. Qc2 {[%clk 0:02:54]}  c6 {[%clk 0:02:28]} 9. Nge2 {[%clk 0:02:52]}  Re8 {[%clk 0:02:29]} 10. O-O {[%clk 0:02:49]}  g6 {[%clk 0:02:29]} 11. f3 {[%clk 0:02:46]}  Nh5 {[%clk 0:02:27]} 12. Bh6 {[%clk 0:02:44]}  Bg5 {[%clk 0:02:26]} 13. Bxg5 {[%clk 0:02:41]}  Qxg5 {[%clk 0:02:27]} 14. f4 {[%clk 0:02:40]}  Qe7 {[%clk 0:02:22]} 15. Rf3 {[%clk 0:02:40]}  f5 {[%clk 0:02:09]} 16. Rh3 {[%clk 0:02:22]}  Nhf6 {[%clk 0:02:06]} 17. Kh1 {[%clk 0:02:12]}  Ng4 {[%clk 0:02:05]} 18. Nd1 {[%clk 0:02:12]}  Ndf6 {[%clk 0:02:00]} 19. Ng1 {[%clk 0:02:09]}  Ne4 {[%clk 0:01:59]} 20. Nf3 {[%clk 0:02:03]}  Bd7 {[%clk 0:01:45]} 21. Ne5 {[%clk 0:02:03]}  Rad8 {[%clk 0:01:43]} 22. Bxe4 {[%clk 0:02:01]}  fxe4 {[%clk 0:01:42]} 23. Rg3 {[%clk 0:01:56]}  Nxe5 {[%clk 0:01:41]} 24. fxe5 {[%clk 0:01:48]}  Rf8 {[%clk 0:01:40]} 25. Nc3 {[%clk 0:01:47]}  Qh4 {[%clk 0:01:35]} 26. Ne2 {[%clk 0:01:44]}  Kh8 {[%clk 0:01:34]} 27. Nf4 {[%clk 0:01:43]}  g5 {[%clk 0:01:32]} 28. Nh3 {[%clk 0:01:29]}  h6 {[%clk 0:01:31]} 29. Kg1 {[%clk 0:01:28]}  Rf5 {[%clk 0:01:30]} 30. Nf2 {[%clk 0:01:21]}  Rdf8 {[%clk 0:01:27]} 31. Rf1 {[%clk 0:01:21]}  R5f7 {[%clk 0:01:25]} 32. Qc5 {[%clk 0:01:14]}  a6 {[%clk 0:01:19]} 33. Qd6 {[%clk 0:01:14]}  Re8 {[%clk 0:00:57]} 34. Qg6 {[%clk 0:00:50]}  Rg7 {[%clk 0:00:48]} 35. Qf6 {[%clk 0:00:49]}  Qh5 {[%clk 0:00:46]} 36. Nh3 {[%clk 0:00:43]}  Be6 {[%clk 0:00:36]} 37. Kh1 {[%clk 0:00:37]}  Kh7 {[%clk 0:00:28]} 38. Qf2 {[%clk 0:00:33]}  Rf7 {[%clk 0:00:27]} 39. Qg1 {[%clk 0:00:33]}  Ref8 {[%clk 0:00:27]} 40. Rf2 {[%clk 0:00:33]}  Bxh3 {[%clk 0:00:26]} 41. Rxf7+ {[%clk 0:00:32]}  Rxf7 {[%clk 0:00:24]} 42. Rxh3 {[%clk 0:00:32]}  Qe2 {[%clk 0:00:24]} 43. e6 {[%clk 0:00:30]}  Rf1 {[%clk 0:00:24]} 44. Rf3 {[%clk 0:00:20]}  exf3 {[%clk 0:00:21]} 45. gxf3 {[%clk 0:00:18]}  Qxf3# {[%clk 0:00:21]} 0-1


[Site "https://www.chess.com"]

[Event "Titled Tuesday Blitz February 21 Early 2023"]
[White "Alhadad, Mahmoud"]
[Black "Heinemann, Josefine"]
[WhiteFideId "11501863"]
[BlackFideId "12900460"]
[WhiteElo "1840"]
[BlackElo "2289"]
[Result "0-1"]
[Round "07"]
[TimeControl "180+2"]
[Date "2023.02.21"]
[WhiteClock "0:00:14"]
[BlackClock "0:00:38"]

1. e4 {[%clk 0:03:00]}  e5 {[%clk 0:02:58]} 2. d4 {[%clk 0:02:59]}  exd4 {[%clk 0:02:57]} 3. Bc4 {[%clk 0:03:00]}  Nf6 {[%clk 0:02:48]} 4. Nf3 {[%clk 0:03:00]}  Nc6 {[%clk 0:02:40]} 5. O-O {[%clk 0:02:59]}  Nxe4 {[%clk 0:02:39]} 6. Nc3 {[%clk 0:02:58]}  dxc3 {[%clk 0:02:26]} 7. Bxf7+ {[%clk 0:02:57]}  Kxf7 {[%clk 0:02:26]} 8. Qd5+ {[%clk 0:02:56]}  Kf6 {[%clk 0:02:15]} 9. Qxe4 {[%clk 0:02:45]}  h6 {[%clk 0:01:51]} 10. Re1 {[%clk 0:02:44]}  d5 {[%clk 0:01:46]} 11. Qd3 {[%clk 0:01:19]}  Bd6 {[%clk 0:01:17]} 12. Nh4 {[%clk 0:01:14]}  Ne5 {[%clk 0:00:55]} 13. Rxe5 {[%clk 0:01:12]}  Bxe5 {[%clk 0:00:56]} 14. Qg6+ {[%clk 0:01:00]}  Ke7 {[%clk 0:00:56]} 15. Bf4 {[%clk 0:00:48]}  Bxf4 {[%clk 0:00:38]} 16. Re1+ {[%clk 0:00:47]}  Kf8 {[%clk 0:00:38]} 17. Qf5+ {[%clk 0:00:14]}  Bxf5 {[%clk 0:00:38]} 0-1


[Site "https://www.chess.com"]

[Event "Titled Tuesday Blitz February 21 Early 2023"]
[White "Meera, Sai"]
[Black "Valle Maytin, Luis Enrique"]
[WhiteFideId "5004357"]
[BlackFideId "3503666"]
[WhiteElo "2064"]
[BlackElo "2241"]
[Result "0-1"]
[Round "07"]
[TimeControl "180+2"]
[Date "2023.02.21"]
[WhiteClock "0:00:05"]
[BlackClock "0:00:14"]

1. e4 {[%clk 0:03:00]}  c6 {[%clk 0:02:49]} 2. d4 {[%clk 0:02:57]}  d5 {[%clk 0:02:50]} 3. e5 {[%clk 0:02:55]}  c5 {[%clk 0:02:50]} 4. Nf3 {[%clk 0:02:53]}  Bg4 {[%clk 0:02:38]} 5. dxc5 {[%clk 0:02:52]}  e6 {[%clk 0:02:34]} 6. Be3 {[%clk 0:02:47]}  a6 {[%clk 0:02:25]} 7. c3 {[%clk 0:02:46]}  Bxf3 {[%clk 0:02:17]} 8. Qxf3 {[%clk 0:02:42]}  Nd7 {[%clk 0:02:16]} 9. Bd4 {[%clk 0:02:41]}  Bxc5 {[%clk 0:02:13]} 10. Be2 {[%clk 0:02:39]}  Ne7 {[%clk 0:02:12]} 11. Bxc5 {[%clk 0:02:35]}  Nxc5 {[%clk 0:02:12]} 12. O-O {[%clk 0:02:36]}  Ng6 {[%clk 0:02:12]} 13. Qe3 {[%clk 0:02:32]}  Nd7 {[%clk 0:02:07]} 14. f4 {[%clk 0:02:32]}  Qb6 {[%clk 0:02:04]} 15. Qxb6 {[%clk 0:02:30]}  Nxb6 {[%clk 0:02:04]} 16. Nd2 {[%clk 0:02:31]}  Ne7 {[%clk 0:02:04]} 17. Nb3 {[%clk 0:02:30]}  Nf5 {[%clk 0:01:54]} 18. Kf2 {[%clk 0:02:17]}  h5 {[%clk 0:01:50]} 19. g3 {[%clk 0:02:16]}  O-O-O {[%clk 0:01:43]} 20. Bd3 {[%clk 0:02:14]}  Ne7 {[%clk 0:01:37]} 21. Nd4 {[%clk 0:02:09]}  g6 {[%clk 0:01:33]} 22. Ke3 {[%clk 0:02:08]}  Kc7 {[%clk 0:01:33]} 23. a4 {[%clk 0:02:07]}  Nc4+ {[%clk 0:01:32]} 24. Bxc4 {[%clk 0:02:05]}  dxc4 {[%clk 0:01:33]} 25. Ke4 {[%clk 0:02:01]}  Rd5 {[%clk 0:01:23]} 26. Rad1 {[%clk 0:01:53]}  Rhd8 {[%clk 0:01:22]} 27. Rd2 {[%clk 0:01:53]}  Kb6 {[%clk 0:01:13]} 28. Rfd1 {[%clk 0:01:52]}  Kc5 {[%clk 0:01:13]} 29. Nf3 {[%clk 0:01:48]}  Rxd2 {[%clk 0:01:06]} 30. Rxd2 {[%clk 0:01:48]}  Rd5 {[%clk 0:01:01]} 31. Rd4 {[%clk 0:01:45]}  Nf5 {[%clk 0:00:57]} 32. Rd2 {[%clk 0:01:31]}  b5 {[%clk 0:00:50]} 33. Nd4 {[%clk 0:01:30]}  Nxd4 {[%clk 0:00:30]} 34. cxd4+ {[%clk 0:01:26]}  Kb4 {[%clk 0:00:29]} 35. axb5 {[%clk 0:01:25]}  axb5 {[%clk 0:00:30]} 36. h3 {[%clk 0:01:24]}  Kb3 {[%clk 0:00:26]} 37. g4 {[%clk 0:01:24]}  hxg4 {[%clk 0:00:23]} 38. hxg4 {[%clk 0:01:25]}  b4 {[%clk 0:00:23]} 39. f5 {[%clk 0:01:24]}  c3 {[%clk 0:00:20]} 40. bxc3 {[%clk 0:01:21]}  bxc3 {[%clk 0:00:20]} 41. Rh2 {[%clk 0:00:39]}  c2 {[%clk 0:00:20]} 42. Rh3+ {[%clk 0:00:39]}  Kb2 {[%clk 0:00:20]} 43. Rh2 {[%clk 0:00:29]}  gxf5+ {[%clk 0:00:20]} 44. gxf5 {[%clk 0:00:28]}  Kb1 {[%clk 0:00:20]} 45. fxe6 {[%clk 0:00:17]}  fxe6 {[%clk 0:00:19]} 46. Rh6 {[%clk 0:00:05]}  c1=Q {[%clk 0:00:19]} 47. Rxe6 {[%clk 0:00:05]}  Qc4 {[%clk 0:00:19]} 48. Rb6+ {[%clk 0:00:04]}  Kc2 {[%clk 0:00:17]} 49. Kf5 {[%clk 0:00:04]}  Qxd4 {[%clk 0:00:17]} 50. Re6 {[%clk 0:00:05]}  Qf2+ {[%clk 0:00:15]} 51. Ke4 {[%clk 0:00:05]}  Rd4# {[%clk 0:00:14]} 0-1


[Site "https://www.chess.com"]